Cogmind - Beta 13 @@@ ROGUE MODE // 2024.04.14 @ 02:16:46 Player: Klelik Result: Destroyed by G-50 Soldier with Heavy Laser Performance ------------- Evolutions (2) 1000 Regions Visited (3) 600 Robots Destroyed (58) 290 Value Destroyed (1710) 1710 Prototype IDs (5) 100 Alien Tech Used (0) 0 Bonus (136) 136 TOTAL SCORE: 3836 Bonus ------- High Alert Combat Kills 136 Cogmind --------- Core Integrity 0/550 Matter 285/300 Energy 6/100 System Corruption 0% Temperature Hot (209) Movement Walking (126) Location -8/Materials Parts ------- > --- POWER (1) -------- (None) > --- PROPULSION (3) --- Aluminum Leg Titanium Leg Titanium Leg > --- UTILITY (4) ------ Improved Heat Sink Small Storage Unit Field Recycling Unit > --- WEAPON (3) ------- Particle Gun > --- INVENTORY (8) ---- Aluminum Leg Improved Flight Unit Peak State ------------ > --- POWER ------------ Light Nuclear Core > --- PROPULSION ------- Titanium Leg Titanium Leg VSS Leg > --- UTILITY ---------- Small Storage Unit Terrain Scanner Light Armor Plating Field Recycling Unit > --- WEAPON ----------- Beam Rifle Heavy Assault Rifle Katana > --- INVENTORY -------- Aluminum Leg Aluminum Leg Titanium Leg Titanium Leg Improved Flight Unit Improved Heat Sink [Rating: 25] Favorites ----------- Power Ion Engine Engine Ion Engine Power Core Light Nuclear Core Propulsion Aluminum Leg Leg Aluminum Leg Utility Small Storage Unit Device Terrain Scanner Storage Small Storage Unit Processor Machine Analyzer Protection Hardened Light Armor Plating Weapon Assault Rifle Energy Gun Medium Laser Energy Cannon Heavy Particle Cannon Ballistic Gun Assault Rifle Launcher Grenade Launcher Slashing Weapon Katana Build | -11 -10 -9 -8 ------- Run | Yrd Mat Mat Mat Slots Evolved 4 | . . 2 2 Power . | . . . . Propulsion 1 | . . . 1 Utility 2 | . . 1 1 Weapon 1 | . . 1 . Parts Attached 41 | 6 7 4 24 Power 5 | 1 1 . 3 Engine 3 | 1 1 . 1 Core 2 | . . . 2 Reactor . | . . . . Propulsion 13 | 2 1 1 9 Treads . | . . . . Leg 13 | 2 1 1 9 Wheel . | . . . . Hover . | . . . . Flight . | . . . . Utility 7 | 1 1 1 4 Device 3 | . 1 . 2 Storage 1 | 1 . . . Processor 1 | . . 1 . Hackware . | . . . . Protection 2 | . . . 2 Artifact . | . . . . Weapon 16 | 2 4 2 8 Energy Gun 7 | 1 1 . 5 Energy Cannon 1 | . . . 1 Ballistic Gun 5 | 1 1 2 1 Ballistic Cannon . | . . . . Launcher 2 | . 2 . . Special Weapon . | . . . . Impact Weapon . | . . . . Slashing Weapon 1 | . . . 1 Piercing Weapon . | . . . . Special Melee Weapon . | . . . . Unidentified Prototypes 1 | . . . 1 Parts Lost 24 | . 3 1 20 Power 3 | . . . 3 Propulsion 6 | . 1 1 4 Utility 4 | . . . 4 Weapon 11 | . 2 . 9 Highest Loss Streak 11 | . 3 1 11 To Critical Strikes . | . . . . Average Slot Usage (%) 92 | . 96 96 85 Engine 9 | . 14 11 5 Core 1 | . . . 3 Leg 23 | . 25 18 25 Device 11 | . 12 11 10 Storage 11 | . 14 11 9 Processor 5 | . . 11 5 Protection 2 | . . . 6 Energy Gun 10 | . 10 11 10 Ballistic Gun 12 | . 10 22 5 Launcher 1 | . 6 . . Slashing Weapon 1 | . . . 3 Naked Turns . | . . . . Heaviest Build 30 | 14 17 17 30 Greatest Support 51 | 20 20 20 51 Greatest Overweight (x) 1 | . 1 1 1 Average Overweight (x) . | . . . . Largest Inventory Capacity 8 | 8 8 8 8 Average Capacity 7 | 6 8 8 8 Most Carried 8 | 4 8 8 8 Average Carried 6 | 1 6 6 6 Final Capacity 8 | 8 8 8 8 Final Carried 8 | 4 8 8 2 Class Distribution -------------------- 59% | Mutant 31% | Skirmisher 7% | Scavenger-Skirmisher Dominant Class ---------------- Mutant | -10/Materials Skirmisher | -9/Materials Mutant | -8/Materials Resources | -11 -10 -9 -8 ----------- Run | Yrd Mat Mat Mat Matter Collected 1076 | 206 367 112 391 Remotely . | . . . . Salvage Created 1795 | . 498 239 1058 Parts 104 | . 35 22 47 Haulers Intercepted 3 | . 1 1 1 Recyclers Shooed 1 | . 1 . . Parts Field Recycled 3 | . . . 3 Retrieved Matter 24 | . . . 24 Parts Self-Destructed . | . . . . Prevented . | . . . . Kills | -11 -10 -9 -8 ------- Run | Yrd Mat Mat Mat Combat Hostiles Destroyed 48 | . 18 11 19 Melee 1 | . . . 1 Guns 32 | . 6 11 15 Cannons 2 | . . . 2 AOE 12 | . 12 . . Classes Destroyed 9 | . 7 1 1 Worker 1 | . 1 . . Builder 2 | . 2 . . Hauler 3 | . 1 1 1 Mechanic 1 | . 1 . . Watcher 3 | . 2 . 1 Swarmer 14 | . 3 10 1 Grunt 30 | . 15 . 15 Duelist 1 | . . . 1 Sentry 3 | . . 1 2 Best Kill Streak 10 | . 10 4 3 Combat Bots Only 7 | . 7 4 3 Max Kills in Single Turn 3 | . 3 2 1 Gunslinging . | . . . . Exploded 2 | . 2 . . Melee 1 | . . . 1 Uniques/NPCs Destroyed . | . . . . Combat | -11 -10 -9 -8 -------- Run | Yrd Mat Mat Mat Hostile Shots Fired 312 | . 56 28 228 Missed 75 | . 13 10 52 Damage Taken 3343 | . 512 193 2638 Core 733 | . 97 76 560 Absorbed by Shields . | . . . . Core Remaining (%) 80 | 100 61 81 . Volleys Fired 138 | . 32 17 89 Largest 3 | . 2 3 3 Hottest 90 | . 70 90 90 Shots Fired 290 | . 64 51 175 Gun 263 | . 44 51 168 Cannon 7 | . . . 7 Launcher 20 | . 20 . . Special . | . . . . Kinetic 137 | . 22 34 81 Thermal 91 | . 22 17 52 Explosive 20 | . 20 . . Electromagnetic 42 | . . . 42 Robot Hit Streak 11 | . 11 7 10 Robot Miss Streak 4 | . 4 4 4 Penetration Max . | . . . . Secondary Targets 1 | . . . 1 Max Gunslinging Chain 1 | . . . 1 Shots Hit Robots 191 | . 38 23 130 Core Hits 115 | . 47 15 53 Critical Kills 1 | . . . 1 Critical Parts Destroyed 2 | . . . 2 Critical Strikes 11 | . 1 1 9 Burn 5 | . 1 1 3 Destroy 3 | . . . 3 Sever 3 | . . . 3 Melee Attacks 5 | . . . 5 Impact . | . . . . Slashing 5 | . . . 5 Piercing . | . . . . Sneak Attacks . | . . . . Combat Hostiles . | . . . . Follow-up Attacks . | . . . . Damage Inflicted 3949 | 3 1563 290 2093 Guns 2479 | . 392 290 1797 Cannons 100 | . . . 100 Explosions 1209 | . 1168 . 41 Melee 155 | . . . 155 Ramming 6 | 3 3 . . Kinetic 1094 | . 181 178 735 Thermal 891 | . 211 112 568 Explosive 1168 | . 1168 . . Electromagnetic 635 | . . . 635 Impact . | . . . . Slashing 155 | . . . 155 Piercing . | . . . . Highest Corruption . | . . . . Average Corruption . | . . . . Corruption Purged . | . . . . Corruption Blocked . | . . . . Overload Shots . | . . . . Overflow Damage 16 | . 11 . 5 Projectiles . | . . . . Explosions 16 | . 11 . 5 Melee . | . . . . Knockbacks . | . . . . Impact . | . . . . Kinetic . | . . . . Secondary . | . . . . Self-Inflicted Damage 70 | . 58 . 12 Shots 3 | . 2 . 1 Rammed . | . . . . Targets Rammed 2 | 1 1 . . Kicked 2 | 1 1 . . Crushed . | . . . . Highest Temperature 470 | . 123 63 470 Average Temperature 103 | . 37 31 134 Received Heat Transfer 1668 | . 237 . 1431 Effects 7 | . . . 7 Shutdowns 2 | . . . 2 Energy Bleed 1 | . . . 1 Interference 3 | . . . 3 Short Circuit 1 | . . . 1 Siege Activations . | . . . . Robots Corrupted 1 | . . . 1 Combat Hostiles 1 | . . . 1 Parts Fried 9 | . . . 9 Impact Corruptions . | . . . . Robots Melted . | . . . . Combat Hostiles . | . . . . Parts Melted 4 | . 3 . 1 Heat Transferred 2677 | . 703 407 1567 Parts Sabotaged . | . . . . Parts Stolen . | . . . . Parts Stripped . | . . . . Power Chain Reactions 1 | . . . 1 Alert | -11 -10 -9 -8 ------- Run | Yrd Mat Mat Mat Peak Influence 549 | . 528 463 549 Initial 182 | . . 182 110 Average 259 | . 232 244 311 Maximum Alert Level 2 | . 2 2 2 Low Security (%) 37 | 100 58 43 13 Level 1 43 | . 7 54 64 Level 2 18 | . 34 1 21 Level 3 . | . . . . Level 4 . | . . . . Level 5 . | . . . . High Security . | . . . . Max Security . | . . . . Squads Dispatched 10 | . 4 1 5 Investigation 2 | . 1 . 1 Extermination . | . . . . Reinforcement 6 | . 3 1 2 Assault . | . . . . Garrison 2 | . . . 2 Intercept . | . . . . Searches Triggered . | . . . . Construction Impeded . | . . . . Haulers Reinforced . | . . . . Active Scanning Responses . | . . . . Cargo Convoy Interrupts . | . . . . Stealth | -11 -10 -9 -8 --------- Run | Yrd Mat Mat Mat Distress Signals 8 | . 4 . 4 Communications Jammed . | . . . . Distress Signals . | . . . . Times Spotted 75 | . 26 14 35 Peak Tracking Total 8 | . 7 4 8 Tactical Retreats 6 | . 1 . 5 Traps | -11 -10 -9 -8 ------- Run | Yrd Mat Mat Mat Traps Triggered 2 | . 1 1 . Indirectly . | . . . . Trap Hack Attempts . | . . . . Triggered . | . . . . Disarmed . | . . . . Reprogrammed . | . . . . Reused . | . . . . Traps Extracted . | . . . . Installed . | . . . . Triggered . | . . . . Machines | -11 -10 -9 -8 ---------- Run | Yrd Mat Mat Mat Machines Disabled 6 | . 2 . 4 Max in Single Turn 2 | . 2 . 2 Machines Repaired . | . . . . Machines Dismantled . | . . . . Machines Sabotaged . | . . . . Overloaded Fab Kills . | . . . . Hacking | -11 -10 -9 -8 --------- Run | Yrd Mat Mat Mat Machines Accessed 7 | . 1 3 3 Terminals 7 | . 1 3 3 Fabricators . | . . . . Repair Stations . | . . . . Recycling Units . | . . . . Scanalyzers . | . . . . Garrison Access . | . . . . Total Hacks 18 | . 5 7 6 Successful 7 | . 2 3 2 Failed 11 | . 3 4 4 Catastrophic 3 | . . 1 2 Database Lockouts . | . . . . Manual 8 | . 4 2 2 Terminals 18 | . 5 7 6 Fabricators . | . . . . Repair Stations . | . . . . Recycling Units . | . . . . Scanalyzers . | . . . . Garrison Access . | . . . . Terminal Hacks 7 | . 2 3 2 Record 1 | . . 1 . Prototype ID Bank 2 | . 1 . 1 Terminal Index 2 | . 1 1 . Maintenance Status 1 | . . 1 . Zone Layout 1 | . . . 1 Fabricator Hacks . | . . . . Repair Station Hacks . | . . . . Recycling Unit Hacks . | . . . . Scanalyzer . | . . . . Garrison Access Hacks . | . . . . Unauthorized Hacks . | . . . . Terminals . | . . . . Fabricators . | . . . . Repair Stations . | . . . . Recycling Units . | . . . . Scanalyzers . | . . . . Garrison Access . | . . . . Data Cores Recovered . | . . . . Used . | . . . . Hacking Detections 7 | . 1 3 3 Full Trace Events 1 | . . . 1 Feedback Events . | . . . . Feedback Blocked . | . . . . Robot Schematics Acquired . | . . . . Robots Built . | . . . . Authchips . | . . . . Time . | . . . . Total Robot Build Rating . | . . . . Part Schematics Acquired . | . . . . Parts Built . | . . . . Authchips . | . . . . Time . | . . . . Total Part Build Rating . | . . . . Parts Repaired . | . . . . Time . | . . . . Parts Recycled . | . . . . Recycled Matter . | . . . . Retrieved Matter . | . . . . Retrieved Components . | . . . . Parts Scanalyzed . | . . . . Part Schematics Acquired . | . . . . Parts Damaged . | . . . . Bothacking | -11 -10 -9 -8 ------------ Run | Yrd Mat Mat Mat Used RIF Installer . | . . . . Robots Hacked . | . . . . Non-combat . | . . . . Combat . | . . . . Robot Hacks Applied . | . . . . Relay Couplers Released . | . . . . Fabnet Peak Effective % . | . . . . Robots Rewired . | . . . . Allies Hacked . | . . . . Hacks Repelled . | . . . . Allies | -11 -10 -9 -8 -------- Run | Yrd Mat Mat Mat Total Allies . | . . . . Largest Group . | . . . . Highest-Rated Group . | . . . . Highest-Rated Ally . | . . . . Total Orders . | . . . . Ally Attacks . | . . . . Total Damage . | . . . . Kills . | . . . . Allies Corrupted . | . . . . Allies Melted . | . . . . Intel | -11 -10 -9 -8 ------- Run | Yrd Mat Mat Mat Robot Analysis Total . | . . . . Derelict Logs Recovered . | . . . . Drone Launches . | . . . . Drone Recoveries . | . . . . Exploration | -11 -10 -9 -8 ------------- Run | Yrd Mat Mat Mat Turns Passed 1967 | 65 528 607 767 Spaces Moved 957 | 48 284 290 335 Core 8 | 8 . . . Treads . | . . . . Legs 949 | 40 284 290 335 Wheels . | . . . . Hover . | . . . . Flight . | . . . . Fastest Speed 50 | 50 120 120 110 Average Speed 129 | 108 128 140 123 Slowest Speed 190 | 120 190 190 190 Overloaded Moves . | . . . . Propulsion Burnouts . | . . . . Robots Hopped . | . . . . Cave-ins Triggered . | . . . . Exploration Rate (%) 29 | 4 51 31 31 Regions Visited 3 Branch Regions . Pre-discovered Areas . | . . . . Known Exits Taken . | . . . . Unknown Exits Taken 3 | 1 1 1 . Scrap Searched . | . . . . Spaces Dug . | . . . . Terrain Destroyed 92 | . 83 . 9 Melee . | . . . . Projectile 1 | . . . 1 AOE 91 | . 83 . 8 Terrain Rammed . | . . . . Walls Destroyed . | . . . . Machines Disabled . | . . . . Actions | -11 -10 -9 -8 --------- Run | Yrd Mat Mat Mat Total 1417 | 58 386 453 520 Wait 231 | . 42 140 49 Move 954 | 47 283 289 335 Hop . | . . . . Pick Up 30 | 4 14 3 9 Fast Attach 13 | 6 . . 7 Attach 20 | . 4 3 13 Detach 2 | . . . 2 Swap 8 | . 3 1 4 Drop 14 | . 7 . 7 Fire 138 | . 32 17 89 Melee 5 | . . . 5 Ram . | . . . . Kick 2 | 1 1 . . Crush . | . . . . Escape Stasis . | . . . . Rewire . | . . . . Trap . | . . . . Miscellaneous . | . . . . Route ------- -11/Scrapyard -10/Materials -9/Materials -8/Materials History --------- Turn | Location | Event 4 | -11/Scrapyard | Discovered new exit (range 16) 66 | -11/Scrapyard | Entered Materials 300 | -10/Materials | Build established: Mutant 443 | -10/Materials | Discovered new exit (range 15) 510 | -10/Materials | Destroyed 7 combat bots 515 | -10/Materials | Lost 3 parts (1n2w) 594 | -10/Materials | Entered another Materials area 594 | -9/Materials | Evolved 2 slots: Utility x1, Weapon x1 905 | -9/Materials | Build established: Skirmisher 1077 | -9/Materials | Discovered new exit (range 15) 1201 | -9/Materials | Entered another Materials area 1201 | -8/Materials | Evolved 2 slots: Propulsion x1, Utility x1 1421 | -8/Materials | Lost 4 parts (1n3w) 1682 | -8/Materials | Build established: Mutant 1684 | -8/Materials | Lost 3 parts (1p1u1w) 1803 | -8/Materials | Core integrity fell below 50% 1813 | -8/Materials | Garrison activated, responded to threat 1930 | -8/Materials | Garrison activated, responded to threat 1951 | -8/Materials | Core integrity fell below 20% 1968 | -8/Materials | Destroyed by G-50 Soldier with Heavy Laser Last Messages --------------- 01949_ Power failure, Lgt. Nuclear Core shutdown. 01949_ Slug penetrates Wall. 01949_ Titanium Leg destroyed. 01952_ VSS Leg destroyed. 01952_ Critical hit (Burn: +37). 01952_ Slug penetrates Wall. 01955_ Hvy. Particle Cannon destroyed. 01957_ Acquired 25 matter. 01958_ Slug penetrates G-47 Trooper. 01959_ Acquired Lgt. Nuclear Core. 01960_ Lgt. Nuclear Core destroyed. 01960_ Critical hit (Burn: +37). 01961_ Power failure, Lgt. Nuclear Core shutdown. 01962_ Acquired Particle Gun. 01963_ K-01 Serf collects debris. 01964_ Penetrated by Slug. 01964_ Lgt. Nuclear Core destroyed. 01966_ K-01 Serf collects debris. Map ----- +----------------------------------------------------+ | ?????????????????????????????????????????????????? | | ?????????????????????????????????????????????????? | | ?????????????????????????????????????????????????? | | ?????????????????????????????????????????????????? | | ?????????????????????????????????????????????????? | | ?????????????????????????????????????????????????? | | ?????????????????????????????????????????????????? | | ?????????????????????????????????????????????????? | | ?????????????????????????????????????????????????? | | ?????????????????????????????????????????????????? | | ?????????????????????????????????????????????????? | | ?????????????????????????????????????????????????? | | ?????????????????????????????????????????????????? | | ?????????????????????????????????????????????????? | | ?????????????????????????????????????????????????? | | ?????????????????????????????????????????????????? | | ?????????????????????????????????????????????????? | | ??????????????????? ???????????????????????????? | | ??????????????????# ##########?????????????????? | | ??????????????????# # #?????????????????? | | ??????????????????# # ]= #?????????????????? | | ??????????????????# # ]= #?????????????????? | | ?????????????????## # = #?????????????????? | | ??????????????????# # #?????????????????? | | ??????????????????# # """ g #?????????????????? | | ?????????+???????## # "@s #?????????????????? | | ?????????? ####### # g"gh== #?????????????????? | | ????????? # =%k%* #???#?????????????? | | ?????????? ####+#####?????????????????? | | ????????????? #?# ==+????????????????????? | | ????????????????## ### #????????????????????? | | ?????????????????# #???????#????????????? | | ????? ????????#??# +????????????????????? | | ???? ????????????# """ #??"?????????????????? | | ????????? ???????# "G" #????????????????????? | | ?#???????????#???# " " #????????????????????? | | ??????????######## ^^ ##???????????????????? | | ?########## #? ??????????????????? | | ?# # #????????????????????? | | ??# """ # """" +????????????????????? | | ??# """ + """" #????????????????????? | | ??# """! ## ##### """" #????????????????????? | | ??# !!%= ##/##### #????????????????????? | | ??# ["" # %! ## #????????????????????? | | ??# """ #%""" ## """" #????????????????????? | | ### = S" #!""" ## """" #????????????????????? | | + """ + """ ## """" #????????????????????? | | ### """ # ## ????????????????????????? | | ??# # [## ????????????????????????? | | ?######+### ## """????????????????????????? | +----------------------------------------------------+ Best States ------------- Heat Dissipation 45 Energy Generation 14 Energy Capacity 250 Matter Stores 300 Matter Capacity 300 Sight Range 16 Terrain Scan Range 14 Terrain Scan Density 10 Armor Coverage 150 Evasion (%) 55 Item Schematics ----------------- None Robot Schematics ------------------ None Fabricated ------------ Nothing Alien Tech Used ----------------- None Achievements -------------- None Challenges ------------ None Game ------ Seed ModifiedTrackerRipper Manual? 0 Play Time 00:34:06 Cumulative 13.0 hours Start 2024.04.14 @ 01:42:34 End 2024.04.14 @ 02:16:46 Sessions 1 Manual Loads 0 Difficulty Rogue Special Mode None Game No. 7 Rogue 2 Adventurer 5 Explorer 0 Win Type - Total 0 Types 0/0/0/0/0/0/0/0/0 Lore% 5 Gallery% 19 Achievement% 17 Wizard Run 0 Options --------- Layout 2 ASCII 0 Keyboard 1 Movement Numpad Keybinds 0 Fullscreen 1 Font 24/Smallcaps Map View 50x44 Zoom Use 0% Tactical HUD 1 Map Filters NONE Filters NONE Steam 1 RUN: 7de2223c-8197-463c-8e27-551ad4be4d06